bitfinex/quotes_ETHUSD_20250706
["timestamp","ask_amount","ask_price","bid_price","bid_amount"]
[1751796909707,1e-08,2510.6,2510.5,17.74596061]
[1751796914621,1e-08,2510.6,2510.5,25.76096061]
[1751796916697,1e-08,2510.6,2510.5,17.74596061]
[1751796923614,1e-08,2510.6,2510.5,15.80196061]
[1751796923820,1e-08,2510.6,2510.5,15.92927026]
[1751796931847,1e-08,2510.6,2510.5,15.92827026]
[1751796932752,1e-08,2510.6,2510.5,13.98527026]
[1751796933048,1e-08,2510.6,2510.5,15.92827026]
[1751796933248,0.75590001,2510.6,2510.5,15.92827026]
[1751796935174,0.75590001,2510.6,2510.5,5.92827026]
[1751796938565,0.75590001,2510.6,2510.5,1.945]
[1751796938862,0.75590001,2510.6,2510.5,5.92827026]
[1751796939658,1e-08,2510.6,2510.5,3.98527026]
[1751796939961,1e-08,2510.6,2510.5,5.92827026]
[1751796947885,0.79910001,2510.6,2510.5,5.92827026]
[1751796948543,1e-08,2510.6,2510.5,5.92827026]
[1751796953176,1e-08,2510.6,2510.5,16.97910997]
[1751796953384,1e-08,2510.6,2510.5,16.93927727]
[1751796965248,1e-08,2510.6,2510.5,24.95127727]
[1751796967550,0.02,2510.9,2510.8,3.98279432]
[1751796967971,0.02,2510.9,2510.8,4.18119432]
[1751796968182,0.02,2510.9,2510.8,5.39591714]
[1751796973590,0.02,2510.9,2510.8,7.33791714]
[1751796973990,0.0432327,2511.0,2510.9,3.9826357]
[1751796974589,0.0432327,2511.0,2510.9,13.9826357]
[1751796977569,0.001,2511.3,2511.1,13.9823185]
[1751796977769,0.001,2511.3,2511.1,14.1807185]
[1751796981605,0.0632327,2511.5,2511.3,3.98197372]
[1751796981809,0.0632327,2511.5,2511.4,15.92384279]
[1751796982123,1e-08,2511.5,2511.4,16.12224279]
[1751796982324,1e-08,2511.5,2511.4,18.53088043]
[1751796982602,0.001,2511.7,2511.6,13.98152572]
[1751796982813,0.001,2511.7,2511.6,14.17992572]
[1751796984517,0.001,2511.8,2511.7,13.9813672]
[1751796985193,0.001,2511.8,2511.7,15.9233672]
[1751796985399,1e-08,2511.8,2511.7,18.15479578]
[1751796985588,1e-08,2511.8,2511.7,26.16479578]
[1751796986984,1e-08,2511.8,2511.7,26.16379578]
[1751796988419,0.02,2512.1,2511.7,26.16379578]
[1751796988420,1e-08,2512.0,2511.9,13.9810502]
[1751796988624,1e-08,2512.0,2511.9,23.20477302]
[1751796990904,0.8652327,2512.5,2512.1,3.98073325]
[1751796991109,0.8652327,2512.5,2512.1,14.02054058]
[1751796991335,0.0442327,2512.5,2512.1,13.98073325]
[1751796991905,1e-08,2512.2,2512.1,21.98773325]
[1751796992095,1e-08,2512.2,2512.1,24.11978853]
[1751796993931,0.82100001,2512.2,2512.1,16.11278853]
[1751796995124,1e-08,2512.2,2512.1,16.11278853]
[1751796995727,1e-08,2512.2,2512.1,18.05378853]
[1751796997826,0.78550001,2512.2,2512.1,3.98073325]
[1751796998018,0.78550001,2512.2,2511.9,1.21472282]
[1751796998019,0.78550001,2512.2,2512.0,3.98075588]
[1751796998328,0.78550001,2512.2,2512.1,0.1984]
[1751796998726,0.78550001,2512.2,2512.1,4.17913325]
[1751797005209,8.80950001,2512.2,2512.1,4.17913325]
[1751797005532,0.78550001,2512.2,2512.1,4.17913325]
[1751797005741,8.80950001,2512.2,2512.1,4.17913325]
[1751797005928,0.78550001,2512.2,2512.1,4.17913325]
[1751797006132,8.80850001,2512.2,2512.1,4.17913325]
[1751797007043,8.02300001,2512.2,2512.1,4.17913325]
[1751797009150,8.78340001,2512.2,2512.1,4.17913325]
[1751797011318,8.78240001,2512.2,2512.1,4.17913325]
[1751797018970,9.66064001,2512.2,2512.1,0.1984]
[1751797019131,9.68614001,2512.2,2512.0,4.18120408]
[1751797019464,9.68614001,2512.2,2512.0,0.2004]
[1751797023274,12.88082097,2512.2,2512.0,0.2004]
[1751797023431,4.80273325,2512.1,2512.0,0.2004]
[1751797023762,6.57108867,2512.1,2512.0,0.002]
[1751797023948,6.76948867,2512.1,2512.0,0.002]
[1751797033563,7.31948867,2512.1,2512.0,0.002]
[1751797038993,15.12948867,2512.1,2512.0,0.002]
[1751797042262,14.93108867,2512.1,2512.0,0.002]
[1751797043710,24.90008867,2512.1,2512.0,0.002]
[1751797044902,34.90008867,2512.1,2512.0,0.002]
[1751797052508,24.93108867,2512.1,2512.0,0.002]
[1751797052668,34.89708867,2512.1,2512.0,0.002]
[1751797064892,34.89208867,2512.1,2512.0,0.002]
[1751797073715,24.93108867,2512.1,2512.0,0.002]
[1751797073907,34.88908867,2512.1,2512.0,0.002]
[1751797074714,21.79073325,2512.1,2512.0,0.002]
[1751797074921,29.80273325,2512.1,2512.0,0.002]
[1751797075292,8.0084,2512.1,2512.0,0.002]
[1751797075505,16.0204,2512.1,2512.0,0.002]
[1751797076243,8.0084,2512.1,2512.0,0.002]
[1751797076404,16.0214,2512.1,2512.0,0.002]
[1751797078842,20.00213325,2512.1,2512.0,0.002]
[1751797079032,20.00213325,2512.1,2511.7,3.98136552]
[1751797079636,8.012,2512.0,2511.7,3.98136552]
[1751797080534,8.012,2512.0,2511.6,4.13185484]
[1751797080844,11.99300189,2512.0,2511.6,0.1504]
[1751797081015,8.012,2512.0,2511.6,4.13191182]
[1751797081444,8.012,2512.0,2511.7,3.9813461]
[1751797081747,8.012,2512.0,2511.6,4.13179232]
[1751797082114,0.1984,2512.1,2511.8,3.98114171]
[1751797082442,8.012,2512.0,2511.8,3.98114171]
[1751797082640,0.1984,2512.1,2511.7,3.98128658]
[1751797082841,8.016,2512.0,2511.8,3.98118024]
[1751797083151,8.016,2511.9,2511.8,3.98118024]
[1751797084230,8.016,2511.9,2511.7,3.98128294]
[1751797086330,8.016,2511.9,2511.6,4.13184266]
[1751797088244,4.17919701,2512.1,2511.6,4.13184266]
[1751797088547,8.015,2512.0,2511.6,4.13184266]
[1751797091047,8.015,2512.0,2511.6,4.13192484]
[1751797092465,0.1984,2512.1,2511.6,0.96176067]
[1751797092636,8.013,2512.0,2511.9,3.98100365]
[1751797093155,0.19840001,2512.2,2511.9,3.98100365]
[1751797093454,8.012,2512.1,2511.9,4.17940365]
[1751797094955,1e-08,2512.2,2511.9,4.17940365]
[1751797095154,8.012,2512.1,2511.9,4.17940365]
[1751797096755,8.012,2512.1,2511.9,0.1984]
[1751797097850,8.011,2512.0,2511.9,4.1794502]
[1751797098827,8.011,2512.0,2511.9,0.1984]
[1751797102734,11.99189171,2512.0,2511.5,0.002]
[1751797102933,11.99189171,2512.0,2511.7,0.1984]
[1751797103236,9.70620677,2512.0,2511.7,0.1984]
[1751797103432,8.011,2512.0,2511.7,0.1984]
[1751797106741,8.011,2512.0,2511.7,4.17974245]
[1751797107474,8.011,2512.0,2511.7,0.1984]
[1751797108554,11.99191969,2512.0,2511.7,0.1984]
[1751797108872,8.011,2512.0,2511.7,0.1984]
[1751797113993,11.99189412,2512.0,2511.7,0.1984]
[1751797114359,8.011,2512.0,2511.7,0.1984]
[1751797117500,8.011,2512.0,2511.7,4.17976032]
[1751797117797,8.011,2512.0,2511.7,0.1984]
[1751797120209,8.012,2512.0,2511.7,0.1984]
[1751797121104,0.001,2512.0,2511.7,4.17976451]
[1751797121405,8.011,2511.9,2511.7,0.1984]
[1751797121970,8.011,2511.9,2511.7,4.17976428]
[1751797122173,8.011,2511.8,2511.7,4.17976428]
[1751797123092,0.001,2512.0,2511.7,1.01472833]
[1751797123306,8.011,2511.9,2511.8,3.98120869]
[1751797123766,8.011,2511.9,2511.8,4.17960869]
[1751797124200,0.001,2512.0,2511.9,3.9810502]
[1751797124474,8.012,2512.0,2511.9,3.9810502]
[1751797125496,0.001,2512.0,2511.9,3.9810502]
[1751797125698,0.001,2512.0,2511.9,4.87874892]
[1751797125901,8.012,2512.0,2511.9,4.87874892]
[1751797130604,0.001,2512.0,2511.9,4.87874892]
[1751797130806,8.011,2512.0,2511.9,4.87874892]
[1751797135310,8.011,2512.0,2511.9,3.9810502]
[1751797135987,8.011,2512.0,2511.8,4.17954281]
[1751797137818,8.011,2512.0,2511.9,3.9810502]
[1751797140883,0.001,2512.0,2511.9,3.9810502]
[1751797141115,8.011,2512.0,2511.9,3.9810502]
[1751797147921,8.01,2512.0,2511.9,3.9810502]
[1751797148125,0.001,2512.0,2511.9,3.9810502]
[1751797148290,8.01,2512.0,2511.9,4.83692361]
[1751797148492,8.01,2512.0,2511.9,4.79711311]
[1751797151293,8.01,2512.0,2511.9,3.9810502]
[1751797160936,0.001,2512.0,2511.9,3.9810502]
[1751797161141,8.01,2512.0,2511.9,4.0208607]
[1751797161438,8.01,2512.0,2511.9,3.9810502]
[1751797161837,0.001,2512.0,2511.9,13.9810502]
[1751797162147,0.001,2512.0,2511.9,15.79711311]
[1751797176143,0.001,2512.0,2511.9,17.73811311]
[1751797199316,0.001,2512.0,2511.9,15.9220502]
[1751797199475,0.001,2512.0,2511.9,13.9810502]
[1751797211831,0.001,2512.0,2511.8,6.12059985]
[1751797211832,0.7766,2512.0,2511.8,4.17956415]
[1751797211995,0.7766,2512.0,2511.9,3.9810502]
[1751797212316,0.001,2512.0,2511.9,3.9810502]
[1751797212521,8.007,2512.0,2511.9,3.9810502]
[1751797213406,0.001,2512.0,2511.9,3.9810502]
[1751797213594,8.007,2512.0,2511.9,3.9810502]
[1751797221534,8.88536,2512.0,2511.8,4.17953066]
[1751797221700,0.7949,2511.9,2511.8,0.1984]
[1751797222399,0.7949,2511.9,2511.6,3.98144611]
[1751797222600,0.7949,2511.9,2511.7,0.1984]
[1751797222802,3.98120869,2511.8,2511.7,0.1984]
[1751797223034,3.98120869,2511.8,2511.5,0.002]
[1751797223035,4.77882572,2511.6,2511.5,0.002]
[1751797223214,12.98422572,2511.6,2511.5,0.002]
[1751797223416,9.0027,2511.6,2511.5,0.002]
[1751797223597,12.98422572,2511.6,2511.5,0.002]
[1751797224132,9.0027,2511.6,2511.5,0.002]
[1751797224324,10.8358561,2511.6,2511.5,0.002]
[1751797224522,14.81738182,2511.6,2511.5,0.002]
[1751797225923,10.8358561,2511.6,2511.5,0.002]
[1751797227721,2.8288561,2511.6,2511.5,0.002]
[1751797227918,10.8368561,2511.6,2511.5,0.002]
[1751797228220,14.81838182,2511.6,2511.5,0.002]
[1751797230352,15.36838182,2511.6,2511.5,0.002]
[1751797232424,3.9823185,2511.1,2511.0,0.002]
[1751797232624,13.0014185,2511.1,2511.0,0.002]
[1751797233233,13.5514185,2511.1,2511.0,0.002]
[1751797234724,13.5514185,2511.1,2510.5,0.0452327]
[1751797234725,3.98310838,2510.7,2510.5,0.0452327]
[1751797234928,13.74330643,2510.6,2510.5,0.0452327]
[1751797235259,12.9467116,2510.6,2510.5,0.0452327]
[1751797235465,8.9636,2510.6,2510.5,0.0452327]
[1751797236171,12.9467116,2510.6,2510.5,0.0452327]
[1751797237760,8.9636,2510.6,2510.5,0.0452327]
[1751797237941,10.65654712,2510.6,2510.5,0.0452327]
[1751797239557,14.63965872,2510.6,2510.5,0.0452327]
[1751797241846,15.18965872,2510.6,2510.5,0.0452327]
[1751797243972,25.18965872,2510.6,2510.5,0.0452327]
[1751797244870,25.19465872,2510.6,2510.5,0.0452327]
[1751797245172,33.00465872,2510.6,2510.5,0.0452327]
[1751797249451,33.00465872,2510.6,2510.0,0.0432327]
[1751797249452,4.81170502,2510.1,2510.0,0.0432327]
[1751797249648,12.82470502,2510.1,2510.0,0.0432327]
[1751797250990,25.31770502,2510.1,2510.0,0.0432327]
[1751797252753,15.36170502,2510.1,2510.0,0.0432327]
[1751797252956,25.32470502,2510.1,2510.0,0.0432327]
[1751797253177,27.15786112,2510.1,2510.0,0.0432327]
[1751797255077,34.96786112,2510.1,2510.0,0.0432327]
[1751797257162,35.33583034,2510.1,2510.0,0.0432327]
[1751797261195,35.54402034,2510.1,2510.0,0.0432327]
[1751797261698,25.58102034,2510.1,2510.0,0.0432327]
[1751797261866,35.54402034,2510.1,2510.0,0.0432327]
[1751797266114,35.54302034,2510.1,2510.0,0.0432327]
[1751797267585,25.58102034,2510.1,2510.0,0.0432327]
[1751797267786,35.54302034,2510.1,2510.0,0.0432327]
[1751797273179,35.54369904,2510.1,2510.0,0.0432327]
[1751797273686,35.54378189,2510.1,2510.0,0.0432327]
[1751797275704,35.54378189,2510.1,2510.0,0.0452327]
[1751797276280,35.54398417,2510.1,2510.0,0.0452327]
[1751797279307,35.54434082,2510.1,2510.0,0.0452327]
[1751797288117,35.54434082,2510.1,2509.5,0.0452327]
[1751797288118,4.53469875,2509.6,2509.5,0.0452327]
[1751797288287,23.08194863,2509.6,2509.5,0.0452327]
[1751797290497,30.89194863,2509.6,2509.5,0.0452327]
[1751797293931,30.89194863,2509.6,2509.5,0.0964327]
[1751797294522,30.89194863,2509.6,2509.5,0.0452327]
[1751797301857,26.35724988,2509.6,2509.5,0.0452327]
[1751797302552,30.34194863,2509.6,2509.5,0.0452327]
[1751797307554,26.35724988,2509.6,2509.5,0.0452327]
[1751797308121,30.34194863,2509.6,2509.5,0.0452327]
[1751797309929,26.35724988,2509.6,2509.5,0.0452327]
[1751797310131,30.34194863,2509.6,2509.5,0.0452327]
[1751797310859,30.34194863,2509.6,2509.4,0.01]
[1751797310860,30.34194863,2509.6,2509.4,0.0052327]
[1751797311064,0.1992,2509.5,2509.4,0.0052327]
[1751797311731,8.2152,2509.5,2509.4,0.0052327]
[1751797312062,12.20005754,2509.5,2509.4,0.0052327]
[1751797312228,4.18405754,2509.5,2509.4,0.0052327]
[1751797312427,12.20005754,2509.5,2509.4,0.0052327]
[1751797312862,8.1652,2509.5,2509.4,0.0052327]
[1751797316076,12.15005754,2509.5,2509.4,0.0052327]
[1751797316236,15.24773237,2509.5,2509.4,0.0052327]
[1751797320978,15.79773237,2509.5,2509.4,0.0052327]
[1751797321143,16.56723237,2509.5,2509.4,0.0052327]
[1751797324676,11.26287483,2509.5,2509.4,0.0052327]
[1751797325179,15.24773237,2509.5,2509.4,0.0052327]
[1751797341587,3.24687483,2509.5,2509.4,0.0052327]
[1751797341897,8.1652,2509.5,2509.4,0.0052327]
[1751797342053,0.1492,2509.5,2509.4,0.0052327]
[1751797342260,0.1492,2509.5,2509.4,0.0564327]
[1751797342261,8.016,2509.5,2509.4,0.0564327]
[1751797342759,8.017,2509.5,2509.4,0.0564327]
[1751797345468,0.001,2509.5,2509.4,0.0564327]
[1751797345673,8.017,2509.5,2509.4,4.04144903]
[1751797347495,8.017,2509.5,2509.4,3.99144903]
[1751797349516,8.016,2509.5,2509.4,3.99144903]
[1751797350493,8.016,2509.5,2509.4,0.0064327]
[1751797350699,8.016,2509.5,2509.3,3.94153637]
[1751797351205,8.00767748,2509.5,2509.3,3.94153637]
[1751797353901,8.00767748,2509.5,2509.3,3.89153637]
[1751797354107,8.015,2509.4,2509.3,3.89153637]
[1751797357915,8.014,2509.4,2509.3,4.79299149]
[1751797358093,8.014,2509.4,2509.3,4.18437514]
[1751797358714,8.014,2509.4,2509.3,4.13437514]
[1751797365521,8.014,2509.4,2509.3,4.13637514]
[1751797367920,0.001,2509.5,2509.4,3.98501633]
[1751797368226,8.015,2509.5,2509.4,3.98501633]
[1751797379739,0.001,2509.5,2509.4,3.98501633]
[1751797380043,8.015,2509.5,2509.4,4.80215346]
[1751797380215,8.015,2509.5,2509.4,3.98501633]
[1751797382824,0.001,2509.5,2509.4,3.98501633]
[1751797383021,8.014,2509.5,2509.4,3.98501633]
[1751797385244,0.001,2509.5,2509.4,3.98501633]
[1751797385446,0.001,2509.5,2509.4,4.02486649]
[1751797385745,8.014,2509.5,2509.4,4.80613848]
[1751797385945,0.001,2509.5,2509.4,4.80613848]
[1751797386111,8.014,2509.5,2509.4,4.80613848]
[1751797392240,8.014,2509.5,2509.4,3.98501633]
[1751797394764,8.013,2509.5,2509.4,3.98501633]
[1751797405064,0.001,2509.5,2509.4,3.98501633]
[1751797405434,8.013,2509.5,2509.4,3.98501633]
[1751797406785,0.001,2509.5,2509.4,3.98501633]
[1751797406937,0.001,2509.5,2509.4,4.99635346]
[1751797418149,0.001,2509.5,2509.4,5.03620362]
[1751797418353,0.001,2509.5,2509.4,4.99635346]
[1751797419475,0.001,2509.5,2509.4,5.03620362]
[1751797419789,0.001,2509.5,2509.4,4.99635346]
[1751797421687,0.001,2509.5,2509.4,5.03620362]
[1751797421889,0.001,2509.5,2509.4,4.99635346]
[1751797423791,0.001,2509.5,2509.4,5.03620362]
[1751797424088,0.001,2509.5,2509.4,4.99635346]
[1751797424577,0.001,2509.5,2509.4,5.03620362]
[1751797425190,0.001,2509.5,2509.4,4.99635346]
[1751797431599,0.001,2509.5,2509.4,15.03620362]
[1751797431902,0.001,2509.5,2509.4,14.99635346]
[1751797441518,1e-08,2509.5,2509.4,14.99635346]
[1751797441928,1e-08,2509.5,2509.4,23.55735346]
[1751797442149,1e-08,2509.5,2509.4,28.30735346]
[1751797442290,1e-08,2510.0,2509.9,3.98422247]
[1751797442623,1e-08,2510.0,2509.9,16.36448694]
[1751797442921,1e-08,2510.0,2509.9,16.52384472]
[1751797443553,1e-08,2510.0,2509.9,17.07384472]
[1751797444534,1e-08,2510.0,2509.9,17.37238416]
[1751797444919,0.001,2510.5,2510.4,3.98342893]
[1751797445272,0.001,2510.5,2510.4,4.18182893]
[1751797448649,0.001,2510.5,2510.4,14.18182893]
[1751797449017,1e-08,2510.5,2510.4,14.18182893]
[1751797449320,1e-08,2510.5,2510.4,14.73182893]
[1751797449537,1e-08,2510.5,2510.4,16.60336803]
[1751797450630,1e-08,2510.5,2510.4,18.54436803]
[1751797459757,1e-08,2510.5,2510.4,16.60336803]
[1751797459960,1e-08,2510.5,2510.4,18.54336803]
[1751797462129,0.0432327,2511.0,2510.9,13.9826357]
[1751797462329,0.0432327,2511.0,2510.9,15.77917565]
[1751797462550,0.0432327,2511.0,2510.9,15.97757565]
[1751797464229,0.7829,2511.4,2511.3,3.98200135]
[1751797464440,0.7829,2511.4,2511.3,4.22022136]
[1751797464738,0.7829,2511.4,2511.3,5.23445655]
[1751797465227,0.7829,2511.4,2511.3,5.19463654]
[1751797465425,0.7829,2511.4,2511.3,4.22022136]
[1751797466660,0.7829,2511.4,2511.3,4.18040135]
[1751797471366,0.7829,2511.4,2511.3,4.22022136]
[1751797471753,0.7829,2511.4,2511.3,4.18040135]
[1751797471952,0.0432327,2511.5,2511.4,3.98184279]
[1751797474175,0.0432327,2511.5,2511.4,4.02166121]
[1751797474377,0.0432327,2511.5,2511.4,3.98184279]
[1751797476547,0.0432327,2511.5,2511.4,5.41951944]
[1751797478281,0.0432327,2511.5,2511.4,5.45933786]
[1751797478463,0.0432327,2511.5,2511.4,5.41951944]
[1751797479748,0.0432327,2511.5,2511.4,5.45933786]
[1751797480183,0.0442327,2511.5,2511.4,5.45933786]
[1751797480377,0.0442327,2511.5,2511.4,5.41951944]
[1751797480582,0.0442327,2511.5,2511.4,3.98184279]
[1751797482862,8.0492327,2511.5,2511.4,3.98184279]
[1751797484581,0.0442327,2511.5,2511.4,3.98184279]
[1751797484970,8.0492327,2511.5,2511.4,3.98184279]
[1751797490559,0.0442327,2511.5,2511.4,3.98184279]
[1751797499304,8.0492327,2511.5,2511.4,3.98184279]
[1751797499673,0.0442327,2511.5,2511.4,3.98184279]
[1751797499870,8.0492327,2511.5,2511.4,3.98184279]
[1751797500297,0.0442327,2511.5,2511.4,3.98184279]
[1751797500467,8.0492327,2511.5,2511.4,5.41951944]
[1751797501810,0.001,2511.6,2511.5,3.98168425]
[1751797502113,0.001,2511.6,2511.5,4.18008425]
[1751797502267,0.001,2511.6,2511.5,4.21990109]
[1751797502472,0.001,2511.6,2511.5,6.73622644]
[1751797503896,0.001,2511.6,2511.5,6.77604328]
[1751797504790,0.001,2511.6,2511.5,6.73622644]
[1751797507101,0.001,2511.6,2511.5,6.77604328]
[1751797510507,0.001,2511.6,2511.5,6.73622644]
[1751797510704,0.001,2511.6,2511.5,6.77604328]
[1751797510907,0.001,2511.6,2511.5,6.73622644]
[1751797511413,0.001,2511.6,2511.5,6.77604328]
[1751797511612,0.001,2511.6,2511.5,6.73622644]
[1751797511793,0.001,2511.6,2511.5,6.77604328]
[1751797512201,0.001,2511.6,2511.5,6.73622644]
[1751797517718,0.001,2511.6,2511.5,16.73622644]
[1751797527550,0.001,2511.6,2511.5,16.73822644]
[1751797528741,0.001,2511.6,2511.5,14.18208425]
[1751797537172,0.001,2511.6,2511.5,14.18208425]
[1751797560883,1e-08,2511.6,2511.5,14.18208425]
[1751797563426,1e-08,2511.6,2511.5,14.73208425]
[1751797565322,1e-08,2511.6,2511.5,22.73308425]
[1751797566138,1e-08,2512.1,2511.5,22.73308425]
[1751797566335,1e-08,2512.1,2512.0,14.72929171]
[1751797566537,1e-08,2512.1,2512.0,16.11829171]
[1751797593288,1e-08,2512.1,2512.0,16.66829171]
[1751797615510,1e-08,2512.1,2512.0,16.67029171]
[1751797615805,1e-08,2512.1,2512.0,19.53532313]
[1751797634015,0.80930001,2512.1,2512.0,14.18129171]
[1751797634216,0.80930001,2512.1,2512.0,13.98289171]
[1751797642054,1e-08,2512.1,2512.0,13.98289171]
[1751797643259,1e-08,2512.1,2512.0,14.53289171]
[1751797644173,1e-08,2512.1,2512.0,14.73129171]
[1751797644464,1e-08,2512.1,2512.0,17.40232313]
[1751797652876,1e-08,2512.1,2512.0,19.33932313]
[1751797659479,1e-08,2512.1,2512.0,17.40232313]
[1751797659778,1e-08,2512.1,2512.0,27.33632313]
[1751797660747,1e-08,2512.1,2512.0,16.66829171]
[1751797661059,1e-08,2512.1,2512.0,6.66829171]
[1751797661268,1e-08,2512.1,2512.0,16.11829171]
[1751797661668,1e-08,2512.1,2512.0,14.18129171]
[1751797661867,1e-08,2512.1,2512.0,16.11829171]
[1751797663588,0.75460001,2512.1,2512.0,16.11829171]
[1751797669793,1e-08,2512.1,2512.0,16.11829171]
[1751797674372,0.77420001,2512.1,2512.0,14.18129171]
[1751797692915,1e-08,2512.1,2512.0,14.18129171]
[1751797696313,1e-08,2512.1,2512.0,16.19132341]
[1751797698197,1e-08,2512.1,2512.0,16.74132341]
[1751797713838,1e-08,2512.1,2512.0,26.67532341]
[1751797716657,1e-08,2512.1,2512.0,16.67532341]
[1751797716818,1e-08,2512.1,2512.0,26.67532341]
[1751797720147,1e-08,2512.1,2512.0,16.67532341]
[1751797721849,1e-08,2512.1,2512.0,26.67532341]
[1751797731936,1e-08,2512.1,2512.0,26.67432341]
[1751797759588,0.8237,2512.6,2512.5,3.9800995]
[1751797760284,0.8237,2512.6,2512.5,4.21830049]
[1751797760584,0.8237,2512.6,2512.5,4.1784995]
[1751797762779,0.8237,2512.6,2512.5,4.47489012]
[1751797764687,0.8237,2512.6,2512.5,6.41089012]
[1751797768402,0.8237,2512.6,2512.5,7.45000492]
[1751797770405,0.02,2512.6,2512.5,7.45000492]
[1751797770584,0.02,2512.6,2512.5,7.48980591]
[1751797770983,1e-08,2512.6,2512.5,18.03980591]
[1751797771197,1e-08,2512.6,2512.5,18.00000492]
[1751797774902,1e-08,2512.6,2512.5,16.06400492]
[1751797775085,1e-08,2512.6,2512.5,18.00000492]
[1751797793789,1e-08,2512.6,2512.5,18.00200492]
[1751797795136,1e-08,2512.6,2512.5,17.45200492]
[1751797795301,1e-08,2512.6,2512.5,14.47689012]
[1751797795620,1e-08,2512.6,2512.5,16.41289012]
[1751797801756,1e-08,2512.6,2512.5,14.47689012]
[1751797802063,1e-08,2512.6,2512.5,16.41289012]
[1751797806644,0.0432327,2513.6,2513.0,3.9793076]
[1751797806815,0.0432327,2513.6,2513.0,4.77520079]
[1751797807138,0.0432327,2513.6,2513.5,3.97851601]
[1751797807445,1e-08,2513.6,2513.5,14.21670117]
[1751797807750,1e-08,2513.6,2513.5,26.41514296]
[1751797807910,1e-08,2513.6,2513.5,28.35114296]
[1751797809437,0.0632327,2514.1,2514.0,13.97772474]
[1751797809736,0.0632327,2514.1,2514.0,14.17612474]
[1751797810620,0.0632327,2514.1,2514.0,15.99152354]
[1751797812154,0.0632327,2514.1,2514.0,14.17612474]
[1751797814312,0.8626327,2514.1,2514.0,16.11112474]
[1751797816245,0.0632327,2514.1,2514.0,16.11112474]
[1751797817945,0.0632327,2514.1,2514.0,16.41206577]
[1751797819276,0.0632327,2514.1,2514.0,18.45105872]
[1751797821358,0.0632327,2514.1,2514.0,16.31765872]
[1751797821657,0.0632327,2514.1,2514.0,18.28065872]
[1751797828098,0.0432327,2514.6,2514.5,3.97693378]
[1751797828283,0.0432327,2514.6,2514.5,13.97693378]
[1751797828586,0.0432327,2514.6,2514.5,15.77631139]
[1751797828754,0.02,2514.7,2514.6,13.97677563]
[1751797828957,0.02,2514.7,2514.6,15.93977563]
[1751797831363,0.02,2514.7,2514.6,16.13817563]
[1751797832279,0.02,2514.7,2514.6,16.68817563]
[1751797832472,1e-08,2514.7,2514.6,19.50462244]
[1751797833175,0.0432327,2515.1,2515.0,13.97614314]
[1751797833691,0.0432327,2515.1,2515.0,14.17454314]
[1751797833889,1e-08,2515.1,2515.0,14.72454314]
[1751797834478,1e-08,2515.1,2515.0,22.81854314]
[1751797834782,1e-08,2515.1,2515.0,24.15057009]
[1751797835488,0.0432327,2515.6,2515.5,3.97535281]
[1751797835682,0.0432327,2515.6,2515.5,16.13675281]
[1751797836162,0.0432327,2515.6,2515.5,14.17375281]
[1751797836489,0.0432327,2515.6,2515.5,16.13675281]
[1751797837090,0.0432327,2515.6,2515.5,14.17375281]
[1751797837297,0.0432327,2515.6,2515.5,16.13675281]
[1751797837965,0.7820327,2516.0,2515.9,3.97472077]
[1751797838172,0.7820327,2516.0,2515.9,14.17312077]
[1751797839292,0.7820327,2516.0,2515.9,10.0]
[1751797839794,0.7820327,2516.0,2515.9,13.97472077]
[1751797840166,0.7320327,2516.0,2515.9,13.97472077]
[1751797840997,0.7320327,2516.0,2515.9,10.0]
[1751797842494,0.47062889,2516.0,2515.8,0.1984]
[1751797843266,0.7926,2515.9,2515.8,0.1984]
[1751797847002,0.7926,2515.9,2515.6,14.17355861]
[1751797847201,0.7926,2515.9,2515.7,3.97503413]
[1751797847714,0.7926,2515.9,2515.6,14.17358436]
[1751797847882,0.7926,2515.9,2515.8,3.97487876]
[1751797848087,8.8706,2515.9,2515.8,3.97487876]
[1751797848286,8.8706,2515.9,2515.7,3.97496302]
[1751797848598,8.8706,2515.9,2515.8,3.97487876]
[1751797848974,8.078,2515.9,2515.8,3.97487876]
[1751797849374,0.2588404,2516.4,2515.9,3.97472077]
[1751797849574,0.8232,2516.3,2515.9,3.97472077]
[1751797849776,0.8232,2516.3,2516.2,4.17264688]
[1751797850481,0.0604404,2516.4,2516.3,3.97408894]
[1751797851008,0.0604404,2516.4,2516.3,4.17248894]
[1751797852974,0.0604404,2516.4,2516.3,14.17248894]
[1751797853184,0.0604404,2516.4,2516.3,16.18336252]
[1751797857748,0.0604404,2516.4,2516.3,18.15636252]
[1751797858203,0.0104404,2516.4,2516.3,18.15636252]
[1751797858916,0.0104404,2516.4,2516.3,16.14548894]
[1751797860712,0.0104404,2516.4,2516.3,14.17248894]
[1751797860896,0.0104404,2516.4,2516.3,16.14548894]
[1751797861412,0.0104404,2516.4,2516.3,14.17248894]
[1751797861718,0.0104404,2516.4,2516.3,16.14448894]
[1751797862783,0.0104404,2516.4,2516.3,14.17248894]
[1751797863118,0.0104404,2516.4,2516.3,16.14448894]
[1751797864025,0.0104404,2516.4,2516.3,10.1984]
[1751797864229,0.0114404,2516.4,2516.3,12.1704]
[1751797864725,0.0114404,2516.4,2516.3,10.1984]
[1751797864928,0.0114404,2516.4,2516.3,16.14448894]
[1751797865132,0.0114404,2516.4,2516.0,1.972]
[1751797865133,3.98545215,2516.4,2516.0,1.972]
[1751797865426,9.35018522,2516.3,2516.0,6.14495399]
[1751797865630,0.8098,2516.2,2516.0,0.1984]
[1751797865836,0.8098,2516.2,2515.9,9.548]
[1751797865837,0.8098,2516.1,2515.9,9.548]
[1751797866035,0.8098,2516.1,2515.7,10.1984]
[1751797866239,4.78422822,2516.1,2515.7,12.1704]
[1751797866396,4.78422822,2516.1,2515.2,3.9757078]
[1751797866397,4.7845244,2515.9,2515.2,3.9757078]
[1751797866602,0.8098,2515.6,2515.0,1.972]
[1751797866846,0.8098,2515.6,2515.2,0.1984]
[1751797866847,0.8098,2515.4,2515.2,0.1984]
[1751797867398,0.8098,2515.4,2515.2,10.1984]
[1751797868949,0.8098,2515.4,2515.2,0.1984]
[1751797869433,1.71702,2515.4,2515.2,0.1984]
[1751797870451,5.69253286,2515.4,2515.2,0.1984]
[1751797870647,1.71702,2515.4,2515.2,0.1984]